Workbook

Sheet Лист1
A1: Школа | C1: МАОУ СОШ с.Бурибай | F1: Утвердил: | G1: должность | H1: Директор
A2: Типовое примерное меню приготавливаемых блюд | G2: фамилия | H2: Зброя Ю.А.
A3: Возрастная категория | E3: от 7 до 11 лет | G3: дата | H3: 02.09.2024
A5: Неделя | B5: День недели | C5: Прием пищи | D5: Раздел меню | E5: Блюда | F5: Вес блюда, г | G5: Белки | H5: Жиры | I5: Углеводы | J5: Калорийность | K5: № рецептуры | L5: Цена
A6: 1 | B6: 1 | C6: Завтрак | D6: гор. блюдо | E6: Макаронные изделия отварные. Котлеты п/ф с томатным соусом | F6: 260 | G6: 16 | H6: 15 | I6: 48 | J6: 406 | K6: 197; 1 | L6: 52.01
D7: гор. напиток | E7: Чай с лимоном | F7: 200 | G7: 0 | H7: 0 | I7: 10 | J7: 43 | K7: 273 | L7: 4.16
D8: хлеб бел. | E8: Хлеб пшеничный. Масло (порциями) | F8: 40 | G8: 3 | H8: 8 | I8: 15 | J8: 139 | K8: 1; 7 | L8: 11.20
D9: хлеб черн. | E9: Хлеб ржаной | F9: 20 | G9: 1.32 | H9: 0.21 | I9: 7.93 | J9: 40 | K9: 2 | L9: 2.20
D12: итого | F12: =SUM(F6:F11) -> 520 | G12: =SUM(G6:G11) -> 20 | H12: 22 | I12: 81 | J12: 627 | L12: 69.57
A13: =A6 -> 1 | B13: =B6 -> 1 | C13: Обед | D13: закуска | E13: Салат "Здоровье" | F13: 80 | G13: 1.6 | H13: 4 | I13: 6 | J13: 62 | K13: 20 | L13: 6.90
D14: 1 блюдо | E14: Суп картофельный с макаронными изделиями | F14: 250 | G14: 2.87 | H14: 3 | I14: 21 | J14: 126 | K14: 88 | L14: 7.70
D15: 2 блюдо | E15: Плов из птицы | F15: 200 | G15: 15 | H15: 23 | I15: 54 | J15: 462 | K15: 123 | L15: 44.50
D16: гарнир
D17: сладкое | E17: Сок фруктовый (яблочный) | F17: 200 | G17: 1 | H17: 0.2 | I17: 20.2 | J17: 92 | K17: 15 | L17: 16.00
D18: хлеб бел. | E18: Хлеб пшеничный | F18: 20 | G18: 1.62 | H18: 0 | I18: 10 | J18: 48 | K18: 1 | L18: 2.00
D19: хлеб черн. | E19: Хлеб ржаной | F19: 30 | G19: 2 | H19: 0.36 | I19: 12 | J19: 59 | K19: 2 | L19: 2.40
D22: итого | F22: =SUM(F13:F21) -> 780 | G22: =SUM(G13:G21) -> 24 | H22: 31 | I22: 122 | J22: 850 | L22: 79.50
A23: =A6 -> 1 | B23: =B6 -> 1 | C23: Итого за день: | F23: =F12+F22 -> 1300 | G23: =G12+G22 -> 44 | H23: 53 | I23: 203 | J23: 1477 | L23: 149.07
A24: 1 | B24: 2 | C24: Завтрак | D24: гор. блюдо | E24: Каша гречневая рассыпчатая. Тефтели с томатным соусом | F24: 280 | G24: 20 | H24: 17 | I24: 54 | J24: 464 | K24: 330; 2 | L24: 52.56
D25: гор. напиток | E25: Чай молоком и сахаром | F25: 200 | G25: 1.65 | H25: 1.65 | I25: 14.64 | J25: 71 | K25: 259 | L25: 5.01
D26: хлеб чер. | E26: Хлеб ржаной | F26: 20 | G26: 2 | H26: 1 | I26: 10 | J26: 52 | K26: 2 | L26: 2.20
D27: хлеб бел. | E27: Хлеб пшеничный. Сыр (порциями) | F27: 40 | G27: 5 | H27: 3.25 | I27: 17 | J27: 109 | K27: 1; 9 | L27: 9.80
D31: итого | F31: =SUM(F24:F30) -> 540 | G31: =SUM(G24:G30) -> 28 | H31: 22 | I31: 96 | J31: 697 | L31: =SUM(L24:L30) -> 69.57
A32: =A24 -> 1 | B32: =B24 -> 2 | C32: Обед | D32: закуска | E32: Помидоры свежие | F32: 60 | G32: 0.82 | H32: 0.12 | I32: 2.28 | J32: 14 | K32: 9.123 | L32: 7.10
D33: 1 блюдо | E33: Рассольник ленинградский | F33: 250 | G33: 2.68 | H33: 6.2 | I33: 13.8 | J33: 121 | K33: 56 | L33: 7.40
D34: 2 блюдо | E34: Жаркое по домашнему | F34: 200 | G34: 11.43 | H34: 14.4 | I34: 23.7 | J34: 270 | K34: 32 | L34: 35.60
D35: гарнир
D36: сладкое | E36: Компот из смеси сухофруктов | F36: 200 | G36: 1 | H36: 0 | I36: 30 | J36: 125 | K36: 707 | L36: 6.80
D37: хлеб бел. | E37: Хлеб пшеничный | F37: 20 | G37: 2 | H37: 0 | I37: 10 | J37: 48 | K37: 1 | L37: 2.00
D38: кисломол. | E38: Йогурт детский | F38: 100 | G38: 4 | H38: 2 | I38: 14 | J38: 90 | K38: 1 | L38: 17.00
D39: хлеб чер. | E39: хлеб ржаной | F39: 30 | G39: 2 | H39: 0.36 | I39: 12 | J39: 59 | K39: 2 | L39: 2.40
D41: итого | F41: =SUM(F32:F40) -> 860 | G41: =SUM(G32:G40) -> 23 | H41: 23 | I41: 106 | J41: 728 | L41: 78.30
A42: =A24 -> 1 | B42: =B24 -> 2 | C42: Итого за день: | F42: =F31+F41 -> 1400 | G42: =G31+G41 -> 52 | H42: 45 | I42: 202 | J42: 1424 | L42: =L31+L41 -> 147.87
A43: 1 | B43: 3 | C43: Завтрак | D43: гор. блюдо | E43: Каша ячневая молочная вязкая | F43: 185 | G43: 6.69 | H43: 32.9 | I43: 9.62 | J43: 234 | K43: 178 | L43: 22.37
D44: булочное | E44: Плюшка московская | F44: 75 | G44: 6.51 | H44: 8.02 | I44: 43.74 | J44: 246 | K44: 270 | L44: 25.60
D45: гор. напиток | E45: Чай с сахаром | F45: 200 | G45: 0.08 | H45: 0.02 | I45: 10.01 | J45: 41 | K45: 271 | L45: 2.30
D46: хлеб бел. | E46: Хлеб пшеничный | F46: 30 | G46: 2.43 | H46: 0.3 | I46: 14.64 | J46: 73 | K46: 1 | L46: 2.40
D47: хлеб чер. | E47: Хлеб ржаной | F47: 20 | G47: 1.32 | H47: 0.24 | I47: 7.93 | J47: 40 | K47: 2 | L47: 2.20
D48: фрукты | E48: Яблоко | F48: 100 | G48: 0.4 | H48: 0.4 | I48: 9.8 | J48: 47 | K48: 588 | L48: 14.70
D49: итого | F49: =SUM(F43:F48) -> 610 | G49: 18 | H49: =SUM(H43:H48) -> 42 | I49: 97 | J49: 680 | L49: =SUM(L43:L48) -> 69.57
A50: =A43 -> 1 | B50: =B43 -> 3 | C50: Обед | D50: закуска | E50: Икра морковная | F50: 60 | G50: 1.32 | H50: 2.76 | I50: 6.5 | J50: 56.22 | K50: 126 | L50: 7.02
D51: 1 блюдо | E51: Суп крестьянский с рисом со сметаной | F51: 250 | G51: 2.2 | H51: 6.2 | I51: 27.6 | J51: 123.7 | K51: 98 | L51: 9.20
D52: 2 блюдо | E52: Тефтели п/ф с томатным соусом | F52: 110 | G52: 10.5 | H52: 10.5 | I52: 9.7 | J52: 191 | K52: 2 | L52: 42.09
D53: гарнир | E53: Пюре гороховое | F53: 150 | G53: 15.7 | H53: 4.71 | I53: 32.7 | J53: 237 | K53: 163 | L53: 8.51
D54: сладкое | E54: Напиток "Витошка" витаминный | F54: 200 | G54: 0 | H54: 0 | I54: 15.8 | J54: 60 | K54: 287 | L54: 9.42
D55: хлеб бел. | E55: Хлеб пшеничный | F55: 20 | G55: 1.62 | H55: 0.2 | I55: 9.76 | J55: 48.4 | K55: 1 | L55: 2.00
D56: хлеб чер. | E56: хлеб ржаной | F56: 30 | G56: 2 | H56: 0.36 | I56: 11.89 | J56: 59.4 | K56: 2 | L56: 2.40
D59: итого | F59: =SUM(F50:F58) -> 820 | G59: =SUM(G50:G58) -> 33 | H59: 25 | I59: 114 | J59: 776 | L59: =SUM(L50:L58) -> 80.64
A60: =A43 -> 1 | B60: =B43 -> 3 | C60: Итого за день: | F60: =F49+F59 -> 1430 | G60: =G49+G59 -> 51 | H60: 67 | I60: 211 | J60: 1455 | L60: =L49+L59 -> 150.21
A61: 1 | B61: 4 | C61: Завтрак | D61: горячее блюдо | E61: Каша рисовая молочная вязкая | F61: 185 | G61: 5.21 | H61: 6.95 | I61: 37.92 | J61: 234 | K61: 186 | L61: 19.17
D62: гор. напиток | E62: Какао на молоке | F62: 200 | G62: 9.2 | H62: 7.1 | I62: 11.03 | J62: 148 | K62: 266 | L62: 23.70
D63: хлеб бел. | E63: Хлеб пшеничный, сыр (порциями) | F63: 40 | G63: 5 | H63: 3 | I63: 17 | J63: 109 | K63: 1; 9 | L63: 9.80
D64: хлеб черн. | E64: Хлеб ржаной | F64: 20 | G64: 1 | H64: 0 | I64: 8 | J64: 40 | K64: 2 | L64: 2.20
D65: фрукты | E65: Яблоко | F65: 100 | G65: 0.4 | H65: 0.4 | I65: 9.8 | J65: 47 | K65: 588 | L65: 14.70
D68: итого | F68: =SUM(F61:F67) -> 545 | G68: =SUM(G61:G67) -> 20.81 | H68: 17.45 | I68: 83.75 | J68: 578.66 | L68: =SUM(L61:L67) -> 69.57
A69: =A61 -> 1 | B69: =B61 -> 4 | C69: Обед | D69: закуска | E69: Салат из свежих помидоров и огурцов | F69: 60 | G69: 0.59 | H69: 3.69 | I69: 2.24 | J69: 44.52 | K69: 15 | L69: 15.72
D70: 1 блюдо | E70: Борщ из капусты с картофелем и сметаной | F70: 250 | G70: 2.9 | H70: 6 | I70: 14 | J70: 130.7 | K70: 82 | L70: 11.60
D71: 2 блюдо | E71: Рыба, запеченная с картофелем | F71: 200 | G71: 11.64 | H71: 12.28 | I71: 30.28 | J71: 279 | K71: 81 | L71: 39.50
D72: гарнир
D73: сладкое | E73: Компот из смеси сухофруктов | F73: 200 | G73: 0.78 | H73: 0.06 | I73: 30.1 | J73: 125.2 | K73: 707 | L73: 6.80
D74: хлеб бел. | E74: Хлеб пшеничный | F74: 20 | G74: 1.62 | H74: 0.2 | I74: 9.76 | J74: 48.4 | K74: 1 | L74: 2.00
D75: хлеб чер. | E75: Хлеб ржаной | F75: 30 | G75: 2.55 | H75: 0.99 | I75: 14.49 | J75: 77.7 | K75: 2 | L75: 2.40
D78: итого | F78: =SUM(F69:F77) -> 760 | G78: =SUM(G69:G77) -> 20 | H78: 23 | I78: 100 | J78: 705 | L78: =SUM(L69:L77) -> 78.02
A79: =A61 -> 1 | B79: =B61 -> 4 | C79: Итого за день: | F79: =F68+F78 -> 1305 | G79: =G68+G78 -> 41 | H79: 40 | I79: 184 | J79: 1284 | L79: =L68+L78 -> 147.59
A80: 1 | B80: 5 | C80: Завтрак | D80: гор.блюдо | E80: Картофельное пюре. Птица, тушенная в сметанном соусе | F80: 270 | G80: 11.65 | H80: 18.48 | I80: 28.34 | J80: 325 | K80: 133; 594 | L80: 52.55
D81: напиток | E81: Напиток "Витошка" витаминный | F81: 200 | G81: 0 | H81: 0 | I81: 16 | J81: 60 | K81: 287 | L81: 9.42
D82: хлеб чер. | E82: Хлеб ржаной | F82: 20 | G82: 2 | H82: 1 | I82: 10 | J82: 52 | K82: 2 | L82: 2.20
D83: хлеб бел. | E83: Хлеб пшеничный | F83: 30 | G83: 2 | H83: 0 | I83: 15 | J83: 73 | K83: 1 | L83: 2.50
D84: кондитерск. | E84: Пряник | F84: 25 | G84: 1.48 | H84: 1.63 | I84: 17.63 | J84: 88 | K84: 821 | L84: 2.90
D87: итого | F87: =SUM(F80:F86) -> 545 | G87: =SUM(G80:G86) -> 17 | H87: 21 | I87: 86 | J87: 598 | L87: =SUM(L80:L86) -> 69.57
A88: =A80 -> 1 | B88: =B80 -> 5 | C88: Обед | D88: закуска | E88: Винегрет овощной | F88: 60 | G88: 1 | H88: 4 | I88: 5.06 | J88: 57 | K88: 45 | L88: 7.10
D89: 1 блюдо | E89: Суп картофельный с клецками | F89: 250 | G89: 3 | H89: 4 | I89: 13.68 | J89: 102 | K89: 58 | L89: 13.20
D90: 2 блюдо | E90: Котлета п/ф с томатным соусом | F90: 100 | G90: 10.3 | H90: 10 | I90: 9.5 | J90: 188 | K90: 1 | L90: 35.29
D91: гарнир | E91: Каша гречневая рассыпчатая | F91: 170 | G91: 10 | H91: 6 | I91: 44.6 | J91: 273 | K91: 330 | L91: 9.20
D92: сладкое | E92: Компот из свежих плодов или ягод | F92: 200 | G92: 0.16 | H92: 0.1 | I92: 15 | J92: 61 | K92: 282 | L92: 7.20
D93: хлеб бел. | E93: Хлеб пшеничный | F93: 20 | G93: 2 | H93: 0 | I93: 10 | J93: 48 | K93: 1 | L93: 2.00
D94: хлеб чер. | E94: Хлеб ржаной | F94: 30 | G94: 3 | H94: 0.99 | I94: 14.49 | J94: 78 | K94: 2 | L94: 2.40
D97: итого | F97: =SUM(F88:F96) -> 830 | G97: =SUM(G88:G96) -> 28 | H97: 26 | I97: 112 | J97: 807 | L97: =SUM(L88:L96) -> 76.39
A98: =A80 -> 1 | B98: =B80 -> 5 | C98: Итого за день: | F98: =F87+F97 -> 1375 | G98: =G87+G97 -> 45 | H98: 47 | I98: 198 | J98: 1405 | L98: =L87+L97 -> 145.96
A99: 2 | B99: 1 | C99: Завтрак | D99: гор. блюдо | E99: Каша рисовая рассыпчатая. Котлета п/ф с томатным соусом | F99: 280 | G99: 14.51 | H99: 14.36 | I99: 58.64 | J99: 435.02 | K99: 171; 1 | L99: 59.74
D100: гор. напиток | E100: Чай с молоком и сахаром | F100: 200 | G100: 1.65 | H100: 1.65 | I100: 12.4 | J100: 71.4 | K100: 259 | L100: 5.10
D101: хлеб бел. | E101: Хлеб пшеничный | F101: 30 | G101: 2.43 | H101: 0.3 | I101: 14.64 | J101: 72.6 | K101: 1 | L101: 2.50
D102: хлеб черн. | E102: Хлеб ржаной | F102: 20 | G102: 1.7 | H102: 0.66 | I102: 9.66 | J102: 51.8 | K102: 2 | L102: 2.20
D106: итого | F106: =SUM(F99:F105) -> 530 | G106: =SUM(G99:G105) -> 20 | H106: 17 | I106: 95 | J106: 631 | L106: =SUM(L99:L105) -> 69.54
A107: =A99 -> 2 | B107: =B99 -> 1 | C107: Обед | D107: закуска | E107: Салат из свежих огурцов | F107: 60 | G107: 0.46 | H107: 3.65 | I107: 1.43 | J107: 40.38 | K107: 13 | L107: 9.30
D108: 1 блюдо | E108: Уха с крупой | F108: 250 | G108: 8.12 | H108: 1 | I108: 11.19 | J108: 82.37 | K108: 71 | L108: 8.32
D109: 2 блюдо | E109: Птица, тушеная в соусе с овощами | F109: 180 | G109: 16.1 | H109: 18 | I109: 29.5 | J109: 301 | K109: 261.02 | L109: 36.20
D110: гарнир
D111: сладкое | E111: Кисель из концентрата на плодовых или ягодных экстрактах | F111: 200 | G111: 0 | H111: 0 | I111: 20 | J111: 76 | K111: 324 | L111: 5.10
D112: хлеб бел. | E112: Хлеб пшеничный | F112: 20 | G112: 1.62 | H112: 0.2 | I112: 9.76 | J112: 48.4 | K112: 1.1 | L112: 2.00
D113: хлеб черн. | E113: Хлеб ржаной | F113: 30 | G113: 2.55 | H113: 0.99 | I113: 14.49 | J113: 77.7 | K113: 1.2 | L113: 2.40
D114: кисломол. | E114: Йогурт детский | F114: 100 | G114: 4 | H114: 1.5 | I114: 14.3 | J114: 90 | K114: 588 | L114: 17.00
D116: итого | F116: =SUM(F107:F115) -> 840 | G116: =SUM(G107:G115) -> 33 | H116: 25 | I116: 101 | J116: 716 | L116: =SUM(L107:L115) -> 80.32
A117: =A99 -> 2 | B117: =B99 -> 1 | C117: Итого за день: | F117: =F106+F116 -> 1370 | G117: =G106+G116 -> 53 | H117: 42 | I117: 196 | J117: 1347 | L117: =L106+L116 -> 149.86
A118: 2 | B118: 2 | C118: Завтрак | D118: гор.блюдо | E118: Каша молочная "Дружба" | F118: 200 | G118: 6.31 | H118: 7.63 | I118: 35.41 | J118: 236 | K118: 196 | L118: 16.87
D119: гор. напиток | E119: Какао на молоке | F119: 200 | G119: 9.2 | H119: 7.1 | I119: 11.03 | J119: 148 | K119: 266 | L119: 23.70
D120: хлеб черн. | E120: Хлеб ржаной | F120: 20 | G120: 1.7 | H120: 0.66 | I120: 9.66 | J120: 52 | K120: 2 | L120: 2.20
D121: хлеб бел. | E121: Хлеб пшеничный, сыр (порциями) | F121: 40 | G121: 5 | H121: 3 | I121: 17 | J121: 109 | K121: 1; 9 | L121: 9.80
D122: кисломол. | E122: Йогурт детский питьевой | F122: 100 | G122: 4 | H122: 1.5 | I122: 14.3 | J122: 90 | K122: 1 | L122: 17.00
D125: итого | F125: =SUM(F118:F124) -> 560 | G125: =SUM(G118:G124) -> 26.21 | H125: 19.89 | I125: 87.4 | J125: 634.92 | L125: =SUM(L118:L124) -> 69.57
A126: =A118 -> 2 | B126: =B118 -> 2 | C126: Обед | D126: закуска | E126: Салат "Студенческий" | F126: 60 | G126: 2.4 | H126: 6.17 | I126: 6 | J126: 99.5 | K126: 38 | L126: 7.83
D127: 1 блюдо | E127: Суп картофельный с гречневой крупой | F127: 250 | G127: 3.38 | H127: 4.38 | I127: 17.09 | J127: 120 | K127: 57 | L127: 9.80
D128: 2 блюдо | E128: Тефтели п/ф с томатным соусом | F128: 110 | G128: 10.5 | H128: 10.5 | I128: 9.7 | J128: 191 | K128: 2 | L128: 42.09
D129: гарнир | E129: Макаронные изделия отварные | F129: 160 | G129: 5.74 | H129: 4.23 | I129: 38.26 | J129: 217 | K129: 197 | L129: 7.10
D130: сладкое | E130: Компот из смеси сухофруктов | F130: 200 | G130: 0.78 | H130: 0.06 | I130: 30.1 | J130: 125 | K130: 707 | L130: 6.80
D131: хлеб бел. | E131: Хлеб пшеничный | F131: 20 | G131: 1.62 | H131: 0.2 | I131: 9.76 | J131: 48 | K131: 1 | L131: 2.00
D132: хлеб чер. | E132: Хлеб ржаной | F132: 30 | G132: 2.55 | H132: 0.99 | I132: 14.49 | J132: 78 | K132: 2 | L132: 2.40
D135: итого | F135: =SUM(F126:F134) -> 830 | G135: =SUM(G126:G134) -> 27 | H135: 27 | I135: 125 | J135: 878 | L135: =SUM(L126:L134) -> 78.02
A136: =A118 -> 2 | B136: =B118 -> 2 | C136: Итого за день: | F136: =F125+F135 -> 1390 | G136: =G125+G135 -> 53.18 | H136: 46.42 | I136: 212.5 | J136: 1513.37 | L136: =L125+L135 -> 147.59
A137: 2 | B137: 3 | C137: Завтрак | D137: гор. блюдо | E137: Каша гречневая рассыпчатая. Филе грудки, припущенное с овощами | F137: 270 | G137: 15.06 | H137: 20 | I137: 50.11 | J137: 436.27 | K137: 330; 439 | L137: 55.45
D138: напиток | E138: Напиток "Витошка" витаминный | F138: 200 | G138: 0 | H138: 0 | I138: 15.8 | J138: 60 | K138: 287 | L138: 9.42
D139: хлеб бел. | E139: Хлеб пшеничный | F139: 30 | G139: 2.43 | H139: 0.3 | I139: 14.64 | J139: 72.6 | K139: 1 | L139: 2.50
D140: хлеб чер. | E140: Хлеб ржаной | F140: 20 | G140: 1.7 | H140: 0.66 | I140: 9.66 | J140: 51.8 | K140: 2 | L140: 2.20
D144: итого | F144: =SUM(F137:F143) -> 520 | G144: =SUM(G137:G143) -> 19 | H144: 21 | I144: 90 | J144: 621 | K144: 290 | L144: =SUM(L137:L143) -> 69.57
A145: =A137 -> 2 | B145: =B137 -> 3 | C145: Обед | D145: закуска | E145: Салат из свеклы с растительным маслом | F145: 60 | G145: 0.99 | H145: 5 | I145: 5.94 | J145: 72 | K145: 24 | L145: 4.80
D146: 1 блюдо | E146: Щи из свежей капусты с картофелем и сметаной | F146: 250 | G146: 2.37 | H146: 6.9 | I146: 11.27 | J146: 117.49 | K146: 88 | L146: 9.63
D147: 2 блюдо | E147: Котлета п/ф с томатным соусом | F147: 100 | G147: 10.3 | H147: 10.3 | I147: 9.5 | J147: 188 | K147: 1 | L147: 34.29
D148: гарнир | E148: Картофельное пюре | F148: 150 | G148: 3.8 | H148: 4.83 | I148: 19.37 | J148: 125.66 | K148: 133 | L148: 9.10
D149: сладкое | E149: Напиток лимонный | F149: 200 | G149: 0.1 | H149: 0 | I149: 20 | J149: 79 | K149: 313 | L149: 5.70
D150: хлеб бел. | E150: Хлеб пшеничный | F150: 20 | G150: 2 | H150: 0 | I150: 10 | J150: 48 | K150: 1 | L150: 2.00
D151: хлеб чер. | E151: Хлеб ржаной | F151: 30 | G151: 3 | H151: 0.99 | I151: 14 | J151: 78 | K151: 2 | L151: 2.40
D152: фрукты | E152: Яблоко | F152: 100 | G152: 0.4 | H152: 0.4 | I152: 10 | J152: 47 | K152: 588 | L152: 14.70
D154: итого | F154: =SUM(F145:F153) -> 760 | G154: =SUM(G145:G153) -> 22 | H154: 29 | I154: 101 | J154: 755 | L154: =SUM(L145:L153) -> 82.62
A155: =A137 -> 2 | B155: =B137 -> 3 | C155: Итого за день: | F155: =F144+F154 -> 1280 | G155: =G144+G154 -> 41 | H155: 50 | I155: 191 | J155: 1376 | L155: =L144+L154 -> 152.19
A156: 2 | B156: 4 | C156: Завтрак | D156: гор. блюдо | E156: Макароны, запеченные с сыром | F156: 170 | G156: 8.96 | H156: 15.18 | I156: 35.05 | J156: 317 | K156: 205 | L156: 33.97
D157: напиток | E157: Кофейный напиток | F157: 200 | G157: 3 | H157: 3.21 | I157: 15 | J157: 100 | K157: 275 | L157: 16.20
D158: хлеб бел. | E158: Хлеб пшеничный | F158: 30 | G158: 2 | H158: 0 | I158: 15 | J158: 73 | K158: 1 | L158: 2.50
D159: хлеб чер. | E159: Хлеб ржаной | F159: 20 | G159: 2 | H159: 1 | I159: 10 | J159: 52 | K159: 2 | L159: 2.20
D160: фрукты | E160: Яблоко | F160: 100 | G160: 0.4 | H160: 0.4 | I160: 10 | J160: 47 | K160: 588 | L160: 14.70
D163: итого | F163: =SUM(F156:F162) -> 520 | G163: =SUM(G156:G162) -> 16.4 | H163: 19.75 | I163: 83.74 | J163: 588.61 | L163: =SUM(L156:L162) -> 69.57
A164: =A156 -> 2 | B164: =B156 -> 4 | C164: Обед | D164: закуска | E164: Огурцы свежие | F164: 60 | G164: 0 | H164: 0 | I164: 1 | J164: 7 | K164: 9.119 | L164: 12.54
D165: 1 блюдо | E165: Суп картофельный с горохом | F165: 250 | G165: 8.1 | H165: 4.2 | I165: 17.4 | J165: 131 | K165: 42 | L165: 9.36
D166: 2 блюдо | E166: Плов из птицы | F166: 200 | G166: 10.85 | H166: 23 | I166: 54 | J166: 462 | K166: 123 | L166: 42.30
D167: гарнир
D168: напиток | E168: Напиток "Витошка" витаминный | F168: 200 | G168: 0 | H168: 0 | I168: 15.8 | J168: 60 | K168: 287 | L168: 9.42
D169: хлеб бел. | E169: Хлеб пшеничный | F169: 20 | G169: 1.62 | H169: 0.2 | I169: 9.76 | J169: 48 | K169: 1 | L169: 2.00
D170: хлеб чер. | E170: Хлеб ржаной | F170: 30 | G170: 2.55 | H170: 0.99 | I170: 14.49 | J170: 78 | K170: 2 | L170: 2.40
D173: итого | F173: =SUM(F164:F172) -> 760 | G173: =SUM(G164:G172) -> 24 | H173: 28 | I173: 113 | J173: 786 | L173: =SUM(L164:L172) -> 78.02
A174: =A156 -> 2 | B174: =B156 -> 4 | C174: Итого за день: | F174: =F163+F173 -> 1280 | G174: =G163+G173 -> 40 | H174: 48 | I174: 196 | J174: 1374 | L174: =L163+L173 -> 147.59
A175: 2 | B175: 5 | C175: Завтрак | D175: гор. блюдо | E175: Картофельное пюре. Рыба, тушенная в томате с овощами | F175: 270 | G175: 21 | H175: 13.52 | I175: 20.87 | J175: 246 | K175: 133; 54 | L175: 45.57
D176: гор. напиток | E176: Чай с сахаром | F176: 200 | G176: 0.08 | H176: 0.02 | I176: 10.01 | J176: 41 | K176: 271 | L176: 2.30
D177: хлеб бел. | E177: Хлеб пшеничный | F177: 30 | G177: 2.43 | H177: 0.3 | I177: 14.64 | J177: 73 | K177: 1 | L177: 2.50
D178: кисломол. | E178: Йогурт детский питьевой | F178: 100 | G178: 4 | H178: 1.5 | I178: 14.3 | J178: 90 | K178: 1 | L178: 17.00
D179: хлеб чер. | E179: Хлеб ржаной | F179: 20 | G179: 1.7 | H179: 0.66 | I179: 9.66 | J179: 52 | K179: 2 | L179: 2.20
D182: итого | F182: =SUM(F175:F181) -> 620 | G182: =SUM(G175:G181) -> 29.21 | H182: 16 | I182: 69.48 | J182: 500.91 | L182: =SUM(L175:L181) -> 69.57
A183: =A175 -> 2 | B183: =B175 -> 5 | C183: Обед | D183: закуска | E183: Салат "Школьный" | F183: 80 | G183: 1.3 | H183: 5.9 | I183: 5.3 | J183: 80 | K183: 32 | L183: 7.50
D184: 1 блюдо | E184: Суп картофельный с лапшой домашней | F184: 250 | G184: 3.3 | H184: 4.85 | I184: 26.45 | J184: 146 | K184: 56 | L184: 8.90
D185: 2 блюдо | E185: Голубцы ленивые | F185: 200 | G185: 15.7 | H185: 11.7 | I185: 14.8 | J185: 228 | K185: 315 | L185: 50.42
D186: гарнир
D187: сладкое | E187: Компот из смеси сухофруктов | F187: 200 | G187: 0.78 | H187: 0.06 | I187: 30.1 | J187: 125 | K187: 707 | L187: 6.80
D188: хлеб бел. | E188: Хлеб пшеничный | F188: 20 | G188: 1.62 | H188: 0.2 | I188: 9.76 | J188: 48 | K188: 1 | L188: 2.00
D189: хлеб чер. | E189: Хлеб ржаной | F189: 30 | G189: 2.55 | H189: 0.99 | I189: 14.49 | J189: 78 | K189: 2 | L189: 2.40
D192: итого | F192: =SUM(F183:F191) -> 780 | G192: =SUM(G183:G191) -> 25 | H192: 24 | I192: 101 | J192: 705 | L192: =SUM(L183:L191) -> 78.02
A193: =A175 -> 2 | B193: =B175 -> 5 | C193: Итого за день: | F193: =F182+F192 -> 1400 | G193: =G182+G192 -> 54.46 | H193: 39.7 | I193: 170.38 | J193: 1205.91 | L193: =L182+L192 -> 147.59
